bitfinex/quotes_BTCUSD_20250719
["timestamp","ask_amount","ask_price","bid_price","bid_amount"]
[1752893956853,0.04868343,118280.0,118270.0,0.42341141]
[1752893957230,0.04022921,118280.0,118270.0,0.43186635]
[1752893957444,0.04022921,118280.0,118270.0,0.44032122]
[1752893957688,0.04022921,118280.0,118270.0,0.44032087]
[1752893959443,0.04022921,118280.0,118270.0,0.23881449]
[1752893959654,0.04868343,118280.0,118270.0,0.43186607]
[1752893959862,0.04022921,118280.0,118270.0,0.43186607]
[1752893960047,0.04022921,118280.0,118270.0,0.4234112]
[1752893960048,0.04868343,118280.0,118270.0,0.4234112]
[1752893960473,0.04022921,118280.0,118270.0,0.431866]
[1752893960826,0.01890795,118280.0,118270.0,0.431866]
[1752893961389,0.01890795,118280.0,118270.0,0.43186607]
[1752893961780,0.01890795,118280.0,118270.0,0.44032087]
[1752893962331,0.002,118280.0,118270.0,0.44032051]
[1752893962547,0.002,118280.0,118270.0,0.52583079]
[1752893963204,0.001,118280.0,118270.0,0.52583079]
[1752893963357,0.00832018,118290.0,118280.0,0.22525296]
[1752893963561,0.00832018,118290.0,118280.0,0.48546454]
[1752893963788,0.00832018,118290.0,118280.0,0.48843454]
[1752893964966,0.00932018,118290.0,118280.0,0.48843454]
[1752893966287,0.01777333,118290.0,118280.0,0.48843454]
[1752893966674,0.01877333,118290.0,118280.0,0.48843454]
[1752893966886,0.01032018,118290.0,118280.0,0.48843454]
[1752893967207,0.01877333,118290.0,118280.0,0.48843454]
[1752893967396,0.01032018,118290.0,118280.0,0.48843454]
[1752893967628,0.01032018,118290.0,118280.0,0.29538296]
[1752893967846,0.01032018,118290.0,118280.0,0.48843454]
[1752893969040,0.00845458,118270.0,118260.0,0.20300889]
[1752893969217,0.17755881,118280.0,118260.0,0.6186644]
[1752893969443,0.03381961,118270.0,118260.0,0.62403013]
[1752893969751,0.19446962,118270.0,118260.0,0.82553779]
[1752893970157,0.16910459,118270.0,118260.0,0.02045]
[1752893970460,0.22423065,118270.0,118260.0,0.0702]
[1752893970847,0.22423065,118270.0,118260.0,0.0682]
[1752893971067,0.22423065,118270.0,118260.0,0.0702]
[1752893971260,0.22423065,118270.0,118260.0,0.44082627]
[1752893971491,0.22423065,118270.0,118260.0,0.46757192]
[1752893971773,0.22223065,118270.0,118260.0,0.46757192]
[1752893972372,0.16910459,118270.0,118260.0,0.46757221]
[1752893974028,0.16910459,118270.0,118260.0,0.48448359]
[1752893976110,0.16910459,118270.0,118260.0,0.47602794]
[1752893983974,0.17755967,118270.0,118260.0,0.48448352]
[1752893985731,0.17755967,118270.0,118260.0,0.50058352]
[1752893985941,0.17755967,118270.0,118260.0,0.50903903]
[1752893986164,0.21254208,118270.0,118260.0,0.50903903]
[1752893986388,0.06034701,118270.0,118260.0,0.50903853]
[1752893988978,0.06880216,118270.0,118260.0,0.50903853]
[1752893989862,0.07725738,118270.0,118260.0,0.50903853]
[1752893992230,0.06034694,118270.0,118260.0,0.50903853]
[1752893992430,0.06034694,118270.0,118260.0,0.70209011]
[1752893993299,0.00845422,118280.0,118270.0,0.22676926]
[1752893993530,0.0253626,118280.0,118270.0,0.42198084]
[1752893993734,0.02536253,118280.0,118270.0,0.42507084]
[1752893993915,0.0338169,118280.0,118270.0,0.42507084]
[1752893994157,0.04227134,118280.0,118270.0,0.42507084]
[1752893994741,0.04227134,118280.0,118270.0,0.42607084]
[1752893997126,0.20290762,118280.0,118270.0,0.41761612]
[1752893997351,0.03381733,118280.0,118270.0,0.42607092]
[1752893998602,0.0566658,118280.0,118270.0,0.42607092]
[1752893999247,0.06512031,118280.0,118270.0,0.42607092]
[1752893999506,0.05666609,118280.0,118270.0,0.42607092]
[1752893999921,0.22575638,118280.0,118270.0,0.42607092]
[1752894000345,0.02284847,118280.0,118270.0,0.24147406]
[1752894000553,0.21989945,118290.0,118280.0,0.20239888]
[1752894000813,0.21989945,118290.0,118280.0,0.46573046]
[1752894001029,0.19437208,118290.0,118280.0,0.46573046]
[1752894001253,0.19437208,118290.0,118280.0,0.48263869]
[1752894001487,0.02529566,118290.0,118280.0,0.5062927]
[1752894001715,0.03374924,118290.0,118280.0,0.5062927]
[1752894001958,0.03474931,118290.0,118280.0,0.5062927]
[1752894002407,0.01884222,118290.0,118280.0,0.5062927]
[1752894002624,0.03574881,118290.0,118280.0,0.5062927]
[1752894003299,0.03574881,118290.0,118280.0,0.31324112]
[1752894003548,0.04420239,118290.0,118280.0,0.5062927]
[1752894004854,0.22173203,118290.0,118280.0,0.28787888]
[1752894005073,0.24593802,118290.0,118280.0,0.44087624]
[1752894005283,0.24593802,118290.0,118280.0,0.44612054]
[1752894005482,0.24593802,118290.0,118280.0,0.45457476]
[1752894005691,0.20685594,118290.0,118280.0,0.45457476]
[1752894005892,0.20685594,118290.0,118280.0,0.45778476]
[1752894006323,0.20482594,118290.0,118280.0,0.47398476]
[1752894006556,0.02729595,118290.0,118280.0,0.49753877]
[1752894006793,0.01884229,118290.0,118280.0,0.49753877]
[1752894006992,0.02729573,118290.0,118280.0,0.49753877]
[1752894007197,0.01884229,118290.0,118280.0,0.49753877]
[1752894007818,0.01895627,118290.0,118280.0,0.30448719]
[1752894008022,0.03586336,118290.0,118280.0,0.44933053]
[1752894008230,0.02740971,118290.0,118280.0,0.48908468]
[1752894008419,0.01895619,118290.0,118280.0,0.49753869]
[1752894008670,0.02740963,118290.0,118280.0,0.49753869]
[1752894008844,0.00204975,118290.0,118280.0,0.49753869]
[1752894009074,0.01050297,118290.0,118280.0,0.49753869]
[1752894009656,0.01895634,118290.0,118280.0,0.49753869]
[1752894009852,0.01050297,118290.0,118280.0,0.49753869]
[1752894010215,0.01050297,118290.0,118280.0,0.30448711]
[1752894010216,0.02740985,118290.0,118280.0,0.30448711]
[1752894010424,0.20493956,118290.0,118280.0,0.47398483]
[1752894010639,0.04431736,118290.0,118280.0,0.48243891]
[1752894010846,0.20494013,118290.0,118280.0,0.47398483]
[1752894011005,0.19648676,118290.0,118280.0,0.46553061]
[1752894011207,0.19648676,118290.0,118280.0,0.47398483]
[1752894011631,0.19648676,118290.0,118280.0,0.48243898]
[1752894012194,0.22778395,118290.0,118280.0,0.43766638]
[1752894012397,0.19326325,118290.0,118280.0,0.25801158]
[1752894012605,0.20906325,118290.0,118280.0,0.26646609]
[1752894012833,0.22496325,118290.0,118280.0,0.25801158]
[1752894013064,0.19326325,118290.0,118280.0,0.43555624]
[1752894013278,0.19006325,118290.0,118280.0,0.42710187]
[1752894013442,0.18160953,118290.0,118280.0,0.25801158]
[1752894014139,0.18160953,118290.0,118280.0,0.4524649]
[1752894014338,0.18160953,118290.0,118280.0,0.44401068]
[1752894014952,0.18160953,118290.0,118280.0,0.46302905]
[1752894014953,0.19006311,118290.0,118280.0,0.46302905]
[1752894015163,0.19006311,118290.0,118280.0,0.47148313]
[1752894016564,0.19006311,118290.0,118280.0,0.46302905]
[1752894016782,0.19006311,118290.0,118280.0,0.44612068]
[1752894017505,0.19006311,118290.0,118280.0,0.4545749]
[1752894017688,0.18160953,118290.0,118280.0,0.43766638]
[1752894018047,0.18160953,118290.0,118280.0,0.44612082]
[1752894018263,0.18160953,118290.0,118280.0,0.45457519]
[1752894018449,0.18160953,118290.0,118280.0,0.46302934]
[1752894018643,0.18160953,118290.0,118280.0,0.45457519]
[1752894019945,0.18160953,118290.0,118280.0,0.46302941]
[1752894020115,0.18160953,118290.0,118280.0,0.47148356]
[1752894020327,0.18160953,118290.0,118280.0,0.46302941]
[1752894020529,0.18160953,118290.0,118280.0,0.45457519]
[1752894021130,0.17315574,118290.0,118280.0,0.43766638]
[1752894021331,0.17095574,118290.0,118280.0,0.43766638]
[1752894021992,0.17095574,118290.0,118280.0,0.44612082]
[1752894022219,0.17095574,118290.0,118280.0,0.45457512]
[1752894022636,0.17095574,118290.0,118280.0,0.46302934]
[1752894023625,0.17095574,118290.0,118280.0,0.43766638]
[1752894023982,0.17095574,118290.0,118280.0,0.26012158]
[1752894024209,0.17095574,118290.0,118280.0,0.26857609]
[1752894024411,0.17095574,118290.0,118280.0,0.26012158]
[1752894026979,0.17095574,118290.0,118280.0,0.26857609]
[1752894027192,0.17095574,118290.0,118280.0,0.46138391]
[1752894029078,0.17095574,118290.0,118280.0,0.64738287]
[1752894029696,0.17095574,118290.0,118280.0,0.65583709]
[1752894031154,0.17940939,118290.0,118280.0,0.66743124]
[1752894031392,0.17940939,118290.0,118280.0,0.66743081]
[1752894031513,0.17940939,118290.0,118280.0,0.65897673]
[1752894031725,0.17940939,118290.0,118280.0,0.66743081]
[1752894033240,0.19631655,118290.0,118280.0,0.66743081]
[1752894033441,0.02739081,118290.0,118280.0,0.66743045]
[1752894033681,0.01893709,118290.0,118280.0,0.68333045]
[1752894033948,0.01690709,118290.0,118280.0,0.68333045]
[1752894034100,0.02536081,118290.0,118280.0,0.68333045]
[1752894035135,0.0338146,118290.0,118280.0,0.29747105]
[1752894035347,0.0338146,118290.0,118280.0,0.68333045]
[1752894035547,0.0338146,118290.0,118280.0,0.67487644]
[1752894036171,0.0338146,118290.0,118280.0,0.68333045]
[1752894038460,0.0338146,118290.0,118280.0,0.67487644]
[1752894038707,0.0359446,118290.0,118280.0,0.65897644]
[1752894039424,0.20502059,118290.0,118280.0,0.65897644]
[1752894040259,0.19656715,118290.0,118280.0,0.65052236]
[1752894042201,0.19656715,118290.0,118280.0,0.65897644]
[1752894042820,0.19656715,118290.0,118280.0,0.65052236]
[1752894043116,0.19443715,118290.0,118280.0,0.65052236]
[1752894043314,0.02536116,118290.0,118280.0,0.67517644]
[1752894043616,0.02536116,118290.0,118280.0,0.69177644]
[1752894044471,0.02536116,118290.0,118280.0,0.68332236]
[1752894044677,0.02536116,118290.0,118280.0,0.66672236]
[1752894044876,0.1859835,118290.0,118280.0,0.2562091]
[1752894045143,0.1859835,118290.0,118280.0,0.6420685]
[1752894045788,0.1881135,118290.0,118280.0,0.6420685]
[1752894045990,0.1881135,118290.0,118280.0,0.65052272]
[1752894047003,0.1881135,118290.0,118280.0,0.6589768]
[1752894047232,0.1881135,118290.0,118280.0,0.6743768]
[1752894048084,0.1881135,118290.0,118280.0,0.66592272]
[1752894048298,0.1881135,118290.0,118280.0,0.6574685]
[1752894048916,0.1881135,118290.0,118280.0,0.65052272]
[1752894049121,0.1881135,118290.0,118280.0,0.65897687]
[1752894049278,0.1881135,118290.0,118280.0,0.25616924]
[1752894049483,0.1881135,118290.0,118280.0,0.65048301]
[1752894049920,0.1881135,118290.0,118280.0,0.65893723]
[1752894050374,0.1881135,118290.0,118280.0,0.66739138]
[1752894051020,0.1881135,118290.0,118280.0,0.66726389]
[1752894053418,0.1881135,118290.0,118280.0,0.26449612]
[1752894053639,0.1881135,118290.0,118280.0,0.65035552]
[1752894054367,0.1881135,118290.0,118280.0,0.65880982]
[1752894054585,0.17965978,118290.0,118280.0,0.27295042]
[1752894054810,0.17965978,118290.0,118280.0,0.65880982]
[1752894058274,0.17120599,118290.0,118280.0,0.64190115]
[1752894058951,0.17120599,118290.0,118280.0,0.63344671]
[1752894059162,0.17120599,118290.0,118280.0,0.46435642]
[1752894060281,0.17120599,118290.0,118280.0,0.47281086]
[1752894060725,0.17120599,118290.0,118280.0,0.45590191]
[1752894061724,0.17120599,118290.0,118280.0,0.45276191]
[1752894061958,0.17120599,118290.0,118280.0,0.25983221]
[1752894062639,0.17120599,118290.0,118280.0,0.26828672]
[1752894062839,0.17120599,118290.0,118280.0,0.45742582]
[1752894063160,0.17965978,118290.0,118280.0,0.65880974]
[1752894064309,0.18811336,118290.0,118280.0,0.65880974]
[1752894064451,0.18811336,118290.0,118280.0,0.67380974]
[1752894066871,0.18598336,118290.0,118280.0,0.67380974]
[1752894067092,0.18598336,118290.0,118280.0,0.68226389]
[1752894067307,0.18598336,118290.0,118280.0,0.67380974]
[1752894068605,0.18598336,118290.0,118280.0,0.68226389]
[1752894068821,0.18598336,118290.0,118280.0,0.29640449]
[1752894069011,0.18598336,118290.0,118280.0,0.68226389]
[1752894069430,0.18598336,118290.0,118280.0,0.67380974]
[1752894073557,0.19443673,118290.0,118280.0,0.69836382]
[1752894073757,0.18596721,118300.0,118290.0,0.20228336]
[1752894073970,0.17751449,118300.0,118290.0,0.47835306]
[1752894074198,0.17751449,118300.0,118290.0,0.48149306]
[1752894074328,0.17751449,118300.0,118290.0,0.46539306]
[1752894074888,0.1690617,118300.0,118290.0,0.28786349]
[1752894075063,0.1710617,118300.0,118290.0,0.2631097]
[1752894075273,0.1742317,118300.0,118290.0,0.06488]
[1752894075625,0.29099132,118300.0,118290.0,0.06488]
[1752894075775,0.48392102,118300.0,118290.0,0.06488]
[1752894076126,0.48492102,118300.0,118290.0,0.06488]
[1752894076665,0.2062317,118300.0,118290.0,0.06488]
[1752894077639,0.2062317,118300.0,118290.0,0.2578097]
[1752894077840,0.2062317,118300.0,118290.0,0.06488]
[1752894080006,0.2082317,118300.0,118290.0,0.06488]
[1752894081279,0.20806263,118300.0,118290.0,0.06488]
[1752894081492,0.20780057,118300.0,118290.0,0.06488]
[1752894083671,0.19180057,118300.0,118290.0,0.06488]
[1752894083847,0.19180057,118300.0,118290.0,0.2578097]
[1752894084066,0.17680057,118300.0,118290.0,0.2578097]
[1752894084773,0.17680057,118300.0,118290.0,0.06488]
[1752894084907,0.17680057,118300.0,118290.0,0.2578097]
[1752894085649,0.20820057,118300.0,118290.0,0.2578097]
[1752894085856,0.17752964,118290.0,118280.0,0.00328932]
[1752894085976,0.17752964,118290.0,118280.0,0.07012932]
[1752894086165,0.17752964,118290.0,118280.0,0.26305902]
[1752894086367,0.17752964,118290.0,118280.0,0.07012932]
[1752894086612,0.17964964,118290.0,118280.0,0.06502932]
[1752894086841,0.18287964,118290.0,118280.0,0.06502932]
[1752894087040,0.18287964,118290.0,118280.0,0.25795902]
[1752894087492,0.18387964,118290.0,118280.0,0.25795902]
[1752894087899,0.18387964,118290.0,118280.0,0.06502932]
[1752894088108,0.18387964,118290.0,118280.0,0.25795902]
[1752894088988,0.24429428,118290.0,118280.0,0.25795902]
[1752894089485,0.18064964,118290.0,118280.0,0.25795902]
[1752894090027,0.18064964,118290.0,118280.0,0.25991902]
[1752894090656,0.18064964,118290.0,118280.0,0.26309902]
[1752894090898,0.18064964,118290.0,118280.0,0.27889902]
[1752894092652,0.18064964,118290.0,118280.0,0.06698932]
[1752894092865,0.18064964,118290.0,118280.0,0.25991902]
[1752894093055,0.24907253,118290.0,118280.0,0.25991902]
[1752894093568,0.18387964,118290.0,118280.0,0.25795902]
[1752894094204,0.18387964,118290.0,118280.0,0.06502932]
[1752894094405,0.18387964,118290.0,118280.0,0.25795902]
[1752894095662,0.18064964,118290.0,118280.0,0.25795902]
[1752894095910,0.18064964,118290.0,118280.0,0.25991902]
[1752894097795,0.24907253,118290.0,118280.0,0.06698932]
[1752894097986,0.18387964,118290.0,118280.0,0.25795902]
[1752894098199,0.19887964,118290.0,118280.0,0.00014932]
[1752894098366,0.49186047,118290.0,118280.0,0.00014932]
[1752894098589,0.31543077,118290.0,118280.0,0.06502932]
[1752894098944,0.53374947,118290.0,118280.0,0.06502932]
[1752894099139,0.61950909,118290.0,118280.0,0.06502932]
[1752894101017,0.42657939,118290.0,118280.0,0.06502932]
[1752894102024,0.61950909,118290.0,118280.0,0.06502932]
[1752894102899,0.53374947,118290.0,118280.0,0.06502932]
[1752894103677,0.30931977,118290.0,118280.0,0.06502932]
[1752894103890,0.50224947,118290.0,118280.0,0.06502932]
[1752894106272,0.30931977,118290.0,118280.0,0.06502932]
[1752894106478,0.30931977,118290.0,118280.0,0.25795902]
[1752894106666,0.20603864,118290.0,118280.0,0.06698932]
[1752894106983,0.20603864,118290.0,118280.0,0.26309902]
[1752894107527,0.28101793,118290.0,118280.0,0.25991902]
[1752894109249,0.28101793,118290.0,118280.0,0.06698932]
[1752894109399,0.28101793,118290.0,118280.0,0.25991902]
[1752894109916,0.28101793,118290.0,118280.0,0.06698932]
[1752894110866,0.28101793,118290.0,118280.0,0.25991902]
[1752894111089,0.20603864,118290.0,118280.0,0.25991902]
[1752894111978,0.20603864,118290.0,118280.0,0.27511902]
[1752894112833,0.20603864,118290.0,118280.0,0.08218932]
[1752894113058,0.20603864,118290.0,118280.0,0.27511902]
[1752894113630,0.20391864,118290.0,118280.0,0.29419902]
[1752894113887,0.18698322,118290.0,118280.0,0.66467345]
[1752894114076,0.18698322,118290.0,118280.0,0.48712872]
[1752894114562,0.18698322,118290.0,118280.0,0.29419902]
[1752894115941,0.18698322,118290.0,118280.0,0.68158197]
[1752894116164,0.02636102,118290.0,118280.0,0.69003598]
[1752894116334,0.02636095,118290.0,118280.0,0.69003598]
[1752894116961,0.19543694,118290.0,118280.0,0.68158197]
[1752894117639,0.19543694,118290.0,118280.0,0.67312782]
[1752894117866,0.19543694,118290.0,118280.0,0.69003634]
[1752894118172,0.18698336,118290.0,118280.0,0.69003634]
[1752894120024,0.17007599,118290.0,118280.0,0.48712872]
[1752894120266,0.17007599,118290.0,118280.0,0.49558323]
[1752894120450,0.17007599,118290.0,118280.0,0.30265353]
[1752894120974,0.17007599,118290.0,118280.0,0.49558323]
[1752894121394,0.17007599,118290.0,118280.0,0.50403767]
[1752894123646,0.17007599,118290.0,118280.0,0.51249204]
[1752894124082,0.17007599,118290.0,118280.0,0.50403767]
[1752894124831,0.17007599,118290.0,118280.0,0.67312796]
[1752894125626,0.17007599,118290.0,118280.0,0.28726856]
[1752894125827,0.17007599,118290.0,118280.0,0.67312796]
[1752894128444,0.17007599,118290.0,118280.0,0.68158233]
[1752894130933,0.17007599,118290.0,118280.0,0.69003663]
[1752894131870,0.17007599,118290.0,118280.0,0.68158233]
[1752894134732,0.17852964,118290.0,118280.0,0.69849071]
[1752894135148,0.17852964,118290.0,118280.0,0.69849085]
[1752894135648,0.17852964,118290.0,118280.0,0.69003663]
[1752894138750,0.17852964,118290.0,118280.0,0.68158233]
[1752894141420,0.17848737,118290.0,118280.0,0.68158233]
[1752894142887,0.17848737,118290.0,118280.0,0.67312796]
[1752894143473,0.17848737,118290.0,118280.0,0.66467352]
[1752894143675,0.17848737,118290.0,118280.0,0.67312796]
[1752894146520,0.17848737,118290.0,118280.0,0.68158233]
[1752894149416,0.17848737,118290.0,118280.0,0.67312796]
[1752894149632,0.17003372,118290.0,118280.0,0.49558323]
[1752894150650,0.17003372,118290.0,118280.0,0.66467352]
[1752894151161,0.17003372,118290.0,118280.0,0.27881412]
[1752894151373,0.17003372,118290.0,118280.0,0.66467352]
[1752894151586,0.17003372,118290.0,118280.0,0.27881412]
[1752894151785,0.17003372,118290.0,118280.0,0.66467352]
[1752894153078,0.17003372,118290.0,118280.0,0.67312796]
[1752894154571,0.17534372,118290.0,118280.0,0.00014932]
[1752894154750,0.43637845,118290.0,118280.0,0.06502932]
[1752894155081,0.53642958,118290.0,118280.0,0.06502932]
[1752894155274,0.56181658,118290.0,118280.0,0.06502932]
[1752894159101,1.15962628,118290.0,118280.0,0.00014932]
[1752894159324,0.186046,118250.0,118240.0,0.0161]
[1752894159627,0.18606188,118240.0,118230.0,0.27953831]
[1752894159715,0.18606188,118240.0,118230.0,0.28799625]
[1752894159930,0.18606188,118240.0,118230.0,0.35337427]
[1752894160149,0.00845701,118240.0,118230.0,0.38370774]
[1752894160394,0.01691424,118240.0,118230.0,0.38370774]
[1752894160614,0.04248783,118240.0,118230.0,0.38370774]
[1752894160844,0.04248783,118240.0,118230.0,0.76956714]
[1752894161461,0.04248783,118240.0,118230.0,0.70179063]
[1752894161684,0.04248783,118240.0,118230.0,0.70470809]
[1752894162109,0.05094513,118240.0,118230.0,0.70470809]
[1752894163060,0.04248783,118240.0,118230.0,0.70670809]
[1752894163440,0.05094513,118240.0,118230.0,0.70670809]
[1752894163849,0.04248783,118240.0,118230.0,0.70670809]
[1752894164045,0.0340306,118240.0,118230.0,0.70670809]
[1752894164380,0.02557352,118240.0,118230.0,0.70670809]
[1752894164583,0.03403068,118240.0,118230.0,0.70670809]
[1752894165030,0.02557352,118240.0,118230.0,0.70670809]
[1752894165236,0.2031786,118240.0,118230.0,0.29547529]
[1752894165408,0.2031786,118240.0,118230.0,0.49686301]
[1752894165645,0.2031786,118240.0,118230.0,0.50532081]
[1752894166081,0.2031786,118240.0,118230.0,0.49686301]
[1752894166578,0.2031786,118240.0,118230.0,0.43198301]
[1752894166720,0.2031786,118240.0,118230.0,0.49686301]
[1752894167117,0.02557374,118240.0,118230.0,0.49686301]
[1752894167335,0.03403104,118240.0,118230.0,0.51377854]
[1752894167561,0.04248841,118240.0,118230.0,0.70670824]
[1752894168446,0.03403104,118240.0,118230.0,0.70670824]
[1752894168650,0.03403104,118240.0,118230.0,0.71516582]
[1752894169464,0.04248841,118240.0,118230.0,0.71516582]
[1752894169968,0.03403061,118240.0,118230.0,0.71516582]
[1752894170201,0.21163547,118240.0,118230.0,0.31239118]
[1752894170345,0.21163547,118240.0,118230.0,0.70670831]
[1752894170547,0.04248798,118240.0,118230.0,0.71516546]
[1752894170974,0.03403061,118240.0,118230.0,0.71516546]
[1752894171178,0.03403054,118240.0,118230.0,0.71516546]
[1752894171579,0.02557338,118240.0,118230.0,0.71516546]
[1752894171998,0.01711637,118240.0,118230.0,0.71516546]
[1752894172203,0.02557331,118240.0,118230.0,0.71516546]
[1752894172388,0.03403039,118240.0,118230.0,0.71516546]
[1752894172701,0.04248762,118240.0,118230.0,0.71516546]
[1752894174053,0.01711637,118240.0,118230.0,0.71516546]
[1752894177688,0.00865957,118240.0,118230.0,0.71516546]
[1752894178068,0.00845708,118240.0,118230.0,0.26287508]
[1752894178279,0.00845708,118240.0,118230.0,0.66523448]
[1752894178494,0.01691367,118240.0,118230.0,0.68214993]
[1752894178788,0.01691367,118240.0,118230.0,0.67223247]
[1752894178998,0.00845673,118240.0,118230.0,0.68069048]
[1752894179189,0.0169136,118240.0,118230.0,0.68069048]
[1752894180723,0.00845673,118240.0,118230.0,0.68069048]
[1752894181141,0.00845673,118240.0,118230.0,0.69569048]
[1752894181350,0.18923628,118250.0,118240.0,0.18606202]
[1752894181351,0.02010309,118250.0,118240.0,0.18606202]
[1752894181655,0.02207309,118250.0,118240.0,0.57192142]
[1752894181876,0.03052932,118250.0,118240.0,0.5803785]
[1752894182096,0.03052932,118250.0,118240.0,0.57192142]
[1752894182358,0.03052932,118250.0,118240.0,0.57192149]
[1752894182576,0.03052932,118250.0,118240.0,0.58883573]
[1752894182797,0.02733925,118250.0,118240.0,0.58983573]
[1752894183011,0.02733925,118250.0,118240.0,0.58137865]
[1752894183635,0.02733925,118250.0,118240.0,0.58983573]
[1752894183856,0.02733918,118250.0,118240.0,0.58983573]
[1752894184050,0.03579583,118250.0,118240.0,0.59181573]
[1752894184274,0.02733918,118250.0,118240.0,0.59181573]
[1752894184474,0.03579576,118250.0,118240.0,0.59181573]
[1752894184741,0.04409804,118250.0,118240.0,0.58335865]
[1752894184978,0.24065148,118250.0,118240.0,0.58335865]
[1752894185217,0.22373881,118250.0,118240.0,0.57490149]
[1752894185426,0.22373881,118250.0,118240.0,0.58335865]
[1752894185628,0.22373881,118250.0,118240.0,0.57490149]
[1752894185836,0.22373881,118250.0,118240.0,0.58335865]
[1752894186496,0.19631856,118250.0,118240.0,0.59181573]
[1752894187137,0.19631856,118250.0,118240.0,0.19749925]
[1752894187362,0.18801628,118250.0,118240.0,0.58335865]
[1752894187608,0.18801628,118250.0,118240.0,0.59181573]
[1752894187854,0.18801628,118250.0,118240.0,0.58335865]
[1752894188093,0.18801628,118250.0,118240.0,0.59181573]
[1752894188341,0.18801628,118250.0,118240.0,0.58335865]
[1752894188571,0.18801628,118250.0,118240.0,0.20595633]
[1752894188784,0.18801628,118250.0,118240.0,0.58335865]
[1752894189630,0.18801628,118250.0,118240.0,0.59181573]
[1752894189850,0.18801628,118250.0,118240.0,0.58335865]
[1752894190026,0.18801628,118250.0,118240.0,0.59181573]
[1752894190503,0.00850392,118250.0,118240.0,0.81937543]
[1752894190754,0.01696,118250.0,118240.0,0.6349026]
[1752894190977,0.19448702,118260.0,118250.0,0.17758977]
[1752894191224,0.23567443,118260.0,118250.0,0.44385591]
[1752894191443,0.23567443,118260.0,118250.0,0.45231228]
[1752894191666,0.06655437,118260.0,118250.0,0.47120481]
[1752894191886,0.0580985,118260.0,118250.0,0.47120438]
[1752894192072,0.06655437,118260.0,118250.0,0.454292]
[1752894192284,0.06655437,118260.0,118250.0,0.46274823]
[1752894192504,0.07503203,118260.0,118250.0,0.46274823]
[1752894193674,0.03581462,118260.0,118250.0,0.4458357]
[1752894194094,0.03581462,118260.0,118250.0,0.454292]
[1752894194305,0.03581462,118260.0,118250.0,0.4458357]
[1752894194540,0.03581462,118260.0,118250.0,0.454292]
[1752894194788,0.03581462,118260.0,118250.0,0.46274823]
[1752894195029,0.06171696,118260.0,118250.0,0.46274823]
[1752894195457,0.06171689,118260.0,118250.0,0.47120438]
[1752894195693,0.03581455,118260.0,118250.0,0.66706408]
[1752894196170,0.03581455,118260.0,118250.0,0.47413438]
[1752894197338,0.04427028,118260.0,118250.0,0.28120468]
[1752894197596,0.04427028,118260.0,118250.0,0.46567823]
[1752894197998,0.04427028,118260.0,118250.0,0.47413438]
[1752894198379,0.04427028,118260.0,118250.0,0.46567823]
[1752894198683,0.03581448,118260.0,118250.0,0.47413438]
[1752894198900,0.04427028,118260.0,118250.0,0.47413438]
[1752894199310,0.04427028,118260.0,118250.0,0.46567823]
[1752894199523,0.04427028,118260.0,118250.0,0.47413438]
[1752894200490,0.03581448,118260.0,118250.0,0.47413438]
[1752894200977,0.04427035,118260.0,118250.0,0.46567823]
[1752894201211,0.04427035,118260.0,118250.0,0.457222]
[1752894201432,0.04427035,118260.0,118250.0,0.44876598]
[1752894201643,0.23168172,118260.0,118250.0,0.07531665]
[1752894201884,0.22322607,118260.0,118250.0,0.26824635]
[1752894202385,0.22322607,118260.0,118250.0,0.43737954]
[1752894204019,0.21477034,118260.0,118250.0,0.2597897]
[1752894207943,0.21477034,118260.0,118250.0,0.06686]
[1752894208143,0.21477034,118260.0,118250.0,0.2597897]
[1752894210266,0.21795034,118260.0,118250.0,0.06686]
[1752894210484,0.21795034,118260.0,118250.0,0.2578097]
[1752894213876,0.21477034,118260.0,118250.0,0.2578097]
[1752894216716,0.21477034,118260.0,118250.0,0.2598597]
[1752894222047,0.21477034,118260.0,118250.0,0.26831635]
[1752894222922,0.21477034,118260.0,118250.0,0.2598597]
[1752894224712,0.21477034,118260.0,118250.0,0.2629397]
[1752894229167,0.21477034,118260.0,118250.0,0.07001]
[1752894229372,0.21477034,118260.0,118250.0,0.2629397]
[1752894230599,0.18802242,118260.0,118250.0,0.2629397]
[1752894235143,0.18802242,118260.0,118250.0,0.43552947]
[1752894235436,0.19647807,118260.0,118250.0,0.45978598]
[1752894235988,0.19647807,118260.0,118250.0,0.46824242]
[1752894238944,0.19647807,118260.0,118250.0,0.47669879]
[1752894239171,0.03581512,118260.0,118250.0,0.48515509]
[1752894239961,0.03384512,118260.0,118250.0,0.50155474]
[1752894240263,0.2261293,118260.0,118250.0,0.48464221]
[1752894240734,0.20296401,118260.0,118250.0,0.49309851]
[1752894241160,0.20296401,118260.0,118250.0,0.50155474]
[1752894241593,0.19450836,118260.0,118250.0,0.2583997]
[1752894241840,0.19450836,118260.0,118250.0,0.4513294]
[1752894242055,0.17759655,118260.0,118250.0,0.08081]
[1752894242264,0.21720699,118260.0,118250.0,0.2579397]
[1752894242789,0.21720699,118260.0,118250.0,0.06193]
[1752894242922,0.21720699,118260.0,118250.0,0.2548597]
[1752894244200,0.21720699,118260.0,118250.0,0.27177293]
[1752894244438,0.21720699,118260.0,118250.0,0.26331635]
[1752894247897,0.21720699,118260.0,118250.0,0.44090612]
[1752894248104,0.21720699,118260.0,118250.0,0.44399612]
[1752894249579,0.21720699,118260.0,118250.0,0.45245263]
[1752894249790,0.21720699,118260.0,118250.0,0.46745263]
[1752894251739,0.21720699,118260.0,118250.0,0.25760984]
[1752894251922,0.21720699,118260.0,118250.0,0.28140635]
[1752894252263,0.20872933,118260.0,118250.0,0.28140635]
[1752894252672,0.20872933,118260.0,118250.0,0.2729497]
[1752894254627,0.20665933,118260.0,118250.0,0.2729497]
[1752894254841,0.20665933,118260.0,118250.0,0.28140635]
[1752894255516,0.20665933,118260.0,118250.0,0.28986293]
[1752894255674,0.20665933,118260.0,118250.0,0.46745263]
[1752894255877,0.20665933,118260.0,118250.0,0.47590907]
[1752894256713,0.2149711,118260.0,118250.0,0.47590907]
[1752894257127,0.2149711,118260.0,118250.0,0.49200907]
[1752894260094,0.2149711,118260.0,118250.0,0.48355263]
[1752894260500,0.2149711,118260.0,118250.0,0.47509612]
[1752894260848,0.2149711,118260.0,118250.0,0.45899612]
[1752894261213,0.21432842,118260.0,118250.0,0.45899612]
[1752894261427,0.17678798,118260.0,118250.0,0.45899612]
[1752894263660,0.17678798,118260.0,118250.0,0.2729497]
[1752894265304,0.17892798,118260.0,118250.0,0.2729497]
[1752894266341,0.17892798,118260.0,118250.0,0.28140635]
[1752894266542,0.21658841,118260.0,118250.0,0.28140635]
[1752894266833,0.21658841,118260.0,118250.0,0.2729497]
[1752894267450,0.17892798,118260.0,118250.0,0.28140635]
[1752894269058,0.17892798,118260.0,118250.0,0.08002]
[1752894269264,0.17892798,118260.0,118250.0,0.2729497]
[1752894270315,0.17892798,118260.0,118250.0,0.28140635]
[1752894275002,0.17892798,118260.0,118250.0,0.28986293]
[1752894275388,0.17892798,118260.0,118250.0,0.09693323]
[1752894275636,0.17892798,118260.0,118250.0,0.28986293]
[1752894276542,0.17892798,118260.0,118250.0,0.45899612]
[1752894277288,0.17892798,118260.0,118250.0,0.28140635]